bitfinex/quotes_ETHUSD_20210701
["timestamp","ask_amount","ask_price","bid_price","bid_amount"]
[1625132693865,0.0095752,2104.6,2104.0,8.7153]
[1625132693986,0.0095752,2104.6,2104.1,5.01]
[1625132694085,0.0095752,2104.6,2104.2,10.3075033]
[1625132694086,5.2e-06,2104.6,2104.2,10.3075033]
[1625132694185,1.73359943,2105.5,2104.2,15.4975033]
[1625132694186,10.2106052,2105.2,2104.2,15.4975033]
[1625132694488,10.0106052,2105.2,2104.2,15.4975033]
[1625132694588,10.96282328,2105.2,2104.2,15.4975033]
[1625132694689,10.96282328,2105.2,2104.2,21.48864006]
[1625132694690,0.95221808,2105.2,2104.2,21.48864006]
[1625132694791,23.7477,2105.3,2104.3,0.18]
[1625132694886,38.7477,2105.3,2104.4,0.14]
[1625132694991,45.87495,2105.3,2104.4,0.14]
[1625132695088,45.87495,2105.3,2104.3,9.50272]
[1625132695089,30.87495,2105.3,2104.3,9.50272]
[1625132695190,30.87495,2105.3,2104.5,5.01]
[1625132695287,20.00415,2105.3,2104.5,8.6094]
[1625132695987,12.8769,2105.3,2104.5,8.6094]
[1625132696087,12.8769,2105.3,2104.5,15.11882899]
[1625132696332,0.15,2105.2,2104.5,15.11882899]
[1625132696433,0.15,2105.2,2104.5,8.6094]
[1625132696537,0.15,2105.2,2104.5,15.73644]
[1625132696836,4.0,2104.8,2104.5,15.73644]
[1625132697035,4.0,2104.8,2104.6,3.76322]
[1625132697235,4.0,2104.8,2104.6,3.56322]
[1625132697339,4.0,2104.8,2104.3,16.07332928]
[1625132697436,4.0,2104.8,2104.3,9.50272]
[1625132698242,4.0,2104.8,2104.0,3.7053]
[1625132698340,4.0,2104.8,2103.9,0.01627146]
[1625132698490,4.0,2104.8,2104.0,5.01]
[1625132698584,3.95,2104.8,2104.0,5.01]
[1625132698783,3.95,2104.8,2104.0,5.05]
[1625132698884,3.95,2104.8,2104.0,8.2195]
[1625132699287,7.12762,2104.5,2104.0,8.2195]
[1625132699589,7.12762,2104.5,2104.1,0.04]
[1625132699800,3.95,2104.8,2104.1,0.04]
[1625132700087,3.9,2104.8,2104.1,0.04]
[1625132700185,3.9,2104.8,2104.5,0.01630085]
[1625132700291,3.9,2104.8,2104.5,6.25720085]
[1625132700387,9.5037,2104.6,2104.5,6.25720085]
[1625132700734,17.2537,2104.6,2104.5,3.44116514]
[1625132700835,9.5037,2104.6,2104.5,3.44116514]
[1625132701433,9.6537,2104.6,2104.5,3.44116514]
[1625132702236,9.6537,2104.6,2104.4,5.01]
[1625132702334,9.6537,2104.6,2103.7,5.06]
[1625132702437,9.6537,2104.6,2103.7,0.05]
[1625132702438,6.13006991,2104.5,2103.7,0.05]
[1625132702537,6.24205356,2104.5,2103.7,0.05]
[1625132702633,0.03866153,2104.4,2103.7,0.05]
[1625132702738,0.15,2104.4,2103.7,0.05]
[1625132703687,7.13096,2104.1,2103.7,0.05]
[1625132703784,11.82216,2104.1,2103.7,0.05]
[1625132703885,0.15,2104.0,2103.7,0.05]
[1625132704084,6.32663159,2104.0,2103.7,0.05]
[1625132704588,21.32663159,2104.0,2102.5,10.43806094]
[1625132704692,7.13329,2103.3,2102.5,10.43806094]
[1625132704788,7.13329,2103.3,2102.5,0.02246094]
[1625132704789,6.2365088,2103.2,2102.5,0.02246094]
[1625132704886,6.26989564,2103.2,2102.5,0.02246094]
[1625132704989,2.84132179,2103.2,2102.5,0.02246094]
[1625132705087,2.8,2103.2,2102.5,0.02246094]
[1625132705283,2.95,2103.2,2102.5,0.02246094]
[1625132705382,9.25791683,2103.2,2102.5,0.02246094]
[1625132705478,9.28778612,2103.2,2102.5,0.02246094]
[1625132705579,2.97986929,2103.2,2102.5,0.02246094]
[1625132705681,2.95,2103.2,2102.5,0.02246094]
[1625132706181,7.13396,2102.9,2102.5,0.02246094]
[1625132706384,7.28396,2102.9,2102.5,0.02246094]
[1625132706878,13.56200708,2102.9,2102.5,0.02246094]
[1625132707177,7.28396,2102.9,2102.5,0.02246094]
[1625132707550,13.59564625,2102.9,2102.5,0.02246094]
[1625132707750,0.1,2102.8,2102.5,0.02246094]
[1625132707849,3.6124,2102.8,2102.5,0.02246094]
[1625132707950,6.32478402,2102.7,2102.5,0.02246094]
[1625132708450,9.89312222,2102.7,2102.5,0.02246094]
[1625132708651,28.25,2102.3,2100.7,4.75648]
[1625132708756,28.25,2102.3,2100.6,0.13925696]
[1625132708757,31.9072185,2102.3,2100.6,0.13925696]
[1625132708856,3.6,2102.0,2100.6,0.13925696]
[1625132708958,3.6,2102.0,2100.5,0.16777087]
[1625132708959,0.3569716,2101.9,2100.5,0.16777087]
[1625132709054,0.3569716,2101.9,2100.1,0.00987632]
[1625132709055,3.7202511,2101.8,2100.1,0.00987632]
[1625132709161,0.07948477,2100.7,2100.1,0.00987632]
[1625132709308,0.04376015,2100.6,2100.1,0.00987632]
[1625132709406,0.19376015,2100.6,2100.1,0.00987632]
[1625132709506,2.8,2100.2,2100.1,0.00987632]
[1625132709603,7.5549,2100.2,2100.1,0.00987632]
[1625132709767,7.7049,2100.2,2100.1,0.00987632]
[1625132710065,7.6549,2100.2,2100.1,0.00987632]
[1625132710266,0.02977005,2100.7,2100.1,34.87948938]
[1625132710369,0.13818891,2101.3,2100.2,28.25]
[1625132710466,0.13818891,2101.3,2100.2,35.02908975]
[1625132710467,0.15,2101.2,2100.2,35.02908975]
[1625132710566,0.15,2101.2,2100.2,35.22908975]
[1625132710665,0.15,2101.2,2100.2,28.45]
[1625132710764,0.15,2101.2,2100.2,28.25]
[1625132710868,0.15,2101.2,2100.2,30.56287412]
[1625132711266,7.14063,2101.0,2100.2,2.31287412]
[1625132711419,7.14063,2101.0,2100.1,0.00987632]
[1625132711519,0.15,2100.9,2100.1,0.00987632]
[1625132711620,0.15,2100.9,2100.0,10.75366772]
[1625132712518,7.14208,2100.6,2100.0,10.75366772]
[1625132712625,11.40048,2100.6,2100.0,10.75366772]
[1625132712722,0.15,2100.5,2100.0,10.75366772]
[1625132713318,0.15,2100.5,2100.0,8.03636772]
[1625132713421,6.38384791,2100.5,2100.0,8.03636772]
[1625132713522,7.14339,2100.3,2100.0,8.03636772]
[1625132713719,0.15,2100.3,2100.0,8.03636772]
[1625132714467,3.6721,2100.3,2100.0,8.03636772]
[1625132715820,3.6721,2100.3,2100.2,5.01]
[1625132717225,3.6721,2100.3,2100.0,4.73]
[1625132717327,3.6721,2100.3,2099.3,0.0067291]
[1625132717329,28.25,2100.0,2099.3,0.0067291]
[1625132717579,0.25,2099.9,2099.3,0.0067291]
[1625132717678,0.40093221,2099.9,2099.3,0.0067291]
[1625132717779,0.1,2099.9,2099.3,0.0067291]
[1625132717877,1.4711804,2101.0,2099.3,0.0067291]
[1625132717878,0.595,2100.7,2099.3,0.0067291]
[1625132717976,0.55301189,2101.0,2099.3,0.0067291]
[1625132717977,0.55301189,2101.0,2100.9,1.281]
[1625132717979,0.5117804,2101.0,2100.9,1.281]
[1625132718277,0.5117804,2101.0,2100.9,7.58200763]
[1625132718379,0.5117804,2101.0,2100.8,6.47561436]
[1625132718479,0.5117804,2101.0,2100.4,10.55876346]
[1625132718480,0.5117804,2101.0,2100.9,6.47421552]
[1625132718579,0.5117804,2101.0,2100.6,7.14002]
[1625132718816,0.5117804,2101.0,2100.7,6.09425763]
[1625132718820,0.5117804,2101.0,2100.8,2.44750086]
[1625132718914,10.1194,2102.3,2100.9,30.80877446]
[1625132718916,20.4865,2102.3,2100.9,30.80877446]
[1625132719017,10.3671,2102.3,2101.0,7.34529425]
[1625132719112,10.3671,2102.3,2101.2,5.01]
[1625132719414,12.05393254,2103.1,2101.2,11.75190723]
[1625132719521,2.09093254,2103.1,2101.8,7.13616]
[1625132719614,2.09093254,2103.1,2101.8,4.1557]
[1625132719715,10.309,2103.2,2102.0,0.29554177]
[1625132719718,10.21793254,2103.2,2102.0,0.29554177]
[1625132719816,6.38392759,2103.0,2102.0,5.01]
[1625132719916,10.0258,2103.5,2102.0,5.01]
[1625132719917,10.1758,2103.5,2102.0,5.01]
[1625132720018,10.1758,2103.5,2102.1,9.65673293]
[1625132720116,15.29069477,2103.3,2102.3,5.01]
[1625132720316,15.0,2103.3,2102.3,5.01]
[1625132720416,15.0,2103.3,2102.4,6.09812345]
[1625132720515,12.0238,2103.5,2102.3,5.01]
[1625132720616,1.998,2103.5,2102.3,5.01]
[1625132720822,21.794,2103.4,2102.3,5.01]
[1625132720922,0.30788083,2103.2,2101.9,5.01]
[1625132721140,0.30788083,2103.2,2101.8,5.01]
[1625132721239,0.30788083,2103.2,2101.7,0.03047319]
[1625132721338,0.15,2103.1,2102.1,5.01]
[1625132721439,15.15,2103.1,2101.7,7.15851035]
[1625132721539,15.15,2103.1,2101.8,0.12]
[1625132721730,15.15,2103.1,2101.6,5.01]
[1625132721827,0.03139068,2103.0,2101.4,6.86376706]
[1625132722034,2.27539068,2103.0,2101.4,6.86376706]
[1625132722128,15.0,2102.9,2101.4,6.86376706]
[1625132722280,0.08390679,2102.8,2101.4,6.86376706]
[1625132722783,0.08390679,2102.8,2101.3,7.13727]
[1625132722893,3.8724491,2102.7,2101.3,7.13727]
[1625132722992,3.8724491,2102.7,2100.8,14.52584779]
[1625132722993,0.12217393,2102.6,2100.8,14.52584779]
[1625132723084,0.30344224,2102.2,2100.8,14.52584779]
[1625132723188,0.30344224,2102.2,2100.8,2.63235779]
[1625132723189,3.46,2101.9,2100.8,2.63235779]
[1625132723335,28.25,2101.7,2100.2,4.75874]
[1625132723438,28.25,2101.7,2100.1,0.06546516]
[1625132723440,3.46,2101.3,2100.1,0.06546516]
[1625132723542,22.83179947,2101.2,2100.1,0.06546516]
[1625132723640,22.83179947,2101.2,2100.1,5.16e-06]
[1625132723736,0.4124491,2101.1,2100.1,5.16e-06]
[1625132723843,0.15,2101.0,2100.1,5.16e-06]
[1625132723938,3.61,2101.0,2100.1,5.16e-06]
[1625132724139,3.61,2101.0,2099.5,6.80000516]
[1625132724140,7.18327344,2100.9,2099.5,6.80000516]
[1625132724241,7.18327344,2100.9,2099.3,0.0067291]
[1625132724340,0.15,2100.8,2099.0,2.44750086]
[1625132724445,28.25,2100.7,2098.7,12.83452464]
[1625132724543,28.25,2100.7,2098.9,3.57153]
[1625132724544,3.46,2100.4,2098.9,3.57153]
[1625132724643,10.63452519,2100.6,2098.7,6.85]
[1625132724645,15.0,2100.3,2098.7,6.85]
[1625132724744,3.46,2099.9,2098.7,6.85]
[1625132724844,15.0,2099.8,2098.0,3.77215]
[1625132724940,15.0,2099.8,2098.0,0.2]
[1625132724942,3.46,2099.7,2098.0,0.2]
[1625132725047,23.10312996,2099.6,2098.0,0.2]
[1625132725140,3.46,2099.1,2098.0,0.2]
[1625132725247,15.0,2099.0,2098.0,0.2]
[1625132725340,22.58439969,2099.0,2097.9,0.02]
[1625132725443,3.21,2098.9,2097.9,0.02]
[1625132725593,22.02784016,2098.8,2097.9,0.02]
[1625132725689,15.0,2098.5,2097.9,0.02]
[1625132725787,15.0,2098.5,2097.4,0.006]
[1625132725789,3.46,2098.3,2097.4,0.006]
[1625132725887,8.2,2097.9,2097.4,0.006]
[1625132725985,12.3655,2097.9,2097.4,0.006]
[1625132726085,0.15,2097.8,2097.4,0.006]
[1625132726386,5.95558888,2097.8,2097.4,0.006]
[1625132726488,0.15,2097.8,2097.4,0.006]
[1625132726838,0.5624491,2097.8,2097.4,0.006]
[1625132726934,0.15,2097.8,2097.4,0.006]
[1625132727535,28.25,2097.6,2097.2,3.94101236]
[1625132727637,28.25,2097.6,2097.0,0.01711677]
[1625132727862,28.25,2097.6,2096.7,4.16295877]
[1625132727864,27.65,2097.6,2096.7,4.16295877]
[1625132727933,0.15,2097.6,2096.7,4.16295877]
[1625132728583,0.4124491,2097.5,2096.7,4.16295877]
[1625132728680,0.29494872,2097.2,2096.7,4.16295877]
[1625132728983,0.29739834,2096.8,2096.7,4.16295877]
[1625132729185,14.25260166,2096.8,2096.7,4.16295877]
[1625132729284,0.29494872,2097.2,2096.7,4.16295877]
[1625132729381,0.29494872,2097.2,2095.9,0.02]
[1625132729482,0.29494872,2097.2,2096.0,0.00731008]
[1625132729484,0.15,2097.1,2096.0,0.00731008]
[1625132729584,6.85467327,2097.1,2096.0,0.00731008]
[1625132729689,0.4124491,2097.0,2096.0,0.00731008]
[1625132729789,0.29313378,2096.3,2096.0,0.00731008]
[1625132729890,0.29313378,2096.3,2095.1,0.02921499]
[1625132729891,7.75023378,2096.3,2095.1,0.02921499]
[1625132730080,0.2973122,2096.1,2095.1,0.02921499]
[1625132730179,0.29516588,2095.6,2095.1,0.02921499]
[1625132730381,0.15,2096.0,2095.1,0.02921499]
[1625132730481,0.15,2095.7,2095.1,0.02921499]
[1625132730728,4.6348,2095.7,2095.1,0.02921499]
[1625132731038,10.0,2095.6,2095.0,0.37279299]
[1625132731133,0.15,2095.7,2095.0,0.37279299]
[1625132731235,0.10372637,2096.6,2095.6,25.55875]
[1625132731339,12.2185,2096.9,2095.6,25.55875]
[1625132731340,12.2185,2096.9,2095.7,9.19650242]
[1625132731341,2.196,2096.9,2095.7,9.19650242]
[1625132731435,3.46,2097.2,2095.7,9.19650242]
[1625132731437,0.15,2096.6,2095.7,9.19650242]
[1625132731536,0.15,2096.6,2095.7,0.2]
[1625132731537,28.25,2096.5,2095.7,0.2]
[1625132731627,28.25,2096.4,2095.4,2.94370242]
[1625132731730,28.25,2096.4,2095.5,0.08633204]
[1625132731731,5.91508224,2096.3,2095.5,0.08633204]
[1625132731830,5.91508224,2096.3,2095.4,2.94370242]
[1625132731932,5.91508224,2096.3,2095.4,2.89370242]
[1625132732030,28.4,2096.2,2095.1,13.12336]
[1625132732133,28.4,2096.2,2095.5,9.15711652]
[1625132732134,0.15,2096.2,2095.5,9.15711652]
[1625132732400,0.10707011,2097.0,2095.5,9.00877733]
[1625132732463,1.818,2096.9,2095.6,10.56725972]
[1625132732559,0.13311864,2097.8,2095.9,3.57701]
[1625132732663,0.13311864,2097.8,2096.0,7.36598659]
[1625132732759,0.13311864,2097.8,2096.0,13.68637579]
[1625132732965,0.13311864,2097.8,2096.1,0.15]
[1625132733060,0.13311864,2097.8,2096.1,9.37966023]
[1625132733163,0.13311864,2097.8,2096.1,9.22966023]
[1625132733260,0.13311864,2097.8,2096.7,4.68129]
[1625132733362,0.13311864,2097.8,2096.7,9.70229]
[1625132733562,0.05342864,2097.8,2097.2,7.15035]
[1625132733663,0.00613674,2097.9,2097.2,10.24405]
[1625132733664,0.00439538,2097.9,2097.2,10.24405]
[1625132733762,3.7,2098.7,2097.2,10.24405]
[1625132733866,3.7,2098.7,2098.3,5.01]
[1625132733967,28.2,2098.5,2097.2,20.80380529]
[1625132734069,28.50071688,2098.5,2097.3,0.01313397]
[1625132734166,4.73389382,2098.4,2097.3,0.01313397]
[1625132734264,28.50071688,2098.5,2096.7,13.11142]
[1625132734364,28.50071688,2098.5,2096.7,21.11142]
[1625132734577,0.15,2098.4,2096.7,16.80162]
[1625132734678,0.15,2098.4,2096.7,18.09902]
[1625132734774,15.15,2098.4,2096.7,14.52363]
[1625132734881,15.15,2098.4,2096.7,4.9876]
[1625132735176,16.998,2098.4,2096.7,4.9876]
[1625132735374,15.15,2098.4,2097.5,5.01]
[1625132735477,22.59720598,2098.4,2097.5,5.01]
[1625132735629,22.59720598,2098.4,2097.1,1.271]
[1625132735631,0.30571512,2097.9,2097.1,1.271]
[1625132735825,30.4504491,2098.3,2097.1,1.271]
[1625132735826,0.2,2098.2,2097.1,1.271]
[1625132735926,0.2,2098.2,2097.1,2.3603]
[1625132736029,30.4504491,2098.3,2097.1,2.3603]
[1625132736030,45.6244491,2098.3,2097.1,2.3603]
[1625132736230,0.15,2098.2,2097.1,2.3603]
[1625132736327,0.28732007,2097.9,2097.1,2.3603]
[1625132736528,0.28732007,2097.9,2097.1,1.0893]
[1625132736632,0.2878531,2097.5,2097.1,1.0893]
[1625132736809,0.30227162,2097.2,2097.0,0.8995]
[1625132736910,0.15,2097.4,2095.6,10.2059]
[1625132737008,0.11178104,2097.3,2095.6,4.4342]
[1625132737106,6.19295919,2097.4,2095.6,4.4342]
[1625132737107,0.15,2097.4,2095.6,4.4342]
[1625132737211,0.28775192,2096.8,2095.6,4.4342]
[1625132737307,0.28775192,2096.8,2095.6,6.80739348]
[1625132737637,6.89333332,2097.4,2095.6,6.80739348]
[1625132737711,6.88493074,2097.4,2095.6,9.36714877]
[1625132738011,0.15,2097.4,2095.6,9.36714877]
[1625132738211,0.15,2097.4,2096.0,7.15471]
[1625132738918,0.15,2097.4,2096.1,6.88722232]
[1625132739018,0.15,2097.4,2096.0,7.15471]
[1625132739122,0.15,2097.4,2095.0,0.49842487]
[1625132739125,20.29830217,2097.0,2095.0,0.49842487]
[1625132739220,20.29830217,2097.0,2095.2,7.15844]
[1625132739223,0.29047097,2096.1,2095.2,7.15844]
[1625132739318,0.29047097,2096.1,2095.0,0.37279299]
[1625132739319,4.85707097,2096.1,2095.0,0.37279299]
[1625132739420,15.0,2096.0,2095.0,0.37279299]
[1625132739515,15.15,2096.0,2095.0,0.37279299]
[1625132739715,5.49406544,2095.9,2095.0,0.37279299]
[1625132739924,20.64406544,2095.9,2095.0,0.37279299]
[1625132740122,0.15,2095.9,2095.0,0.37279299]
[1625132740225,0.05,2095.9,2095.0,0.37279299]
[1625132740322,0.05,2095.9,2094.5,11.92844]
[1625132740323,28.25,2095.8,2094.5,11.92844]
[1625132740424,28.25,2095.8,2094.8,7.15985]
[1625132740425,5.64933289,2095.7,2094.8,7.15985]
[1625132740522,6.07128596,2095.7,2094.8,7.15985]
[1625132740623,0.15,2095.6,2094.8,7.15985]
[1625132740723,28.25,2095.8,2094.8,7.10985]
[1625132740823,0.15,2095.6,2094.8,7.10985]
[1625132741428,0.15,2095.6,2094.8,0.78325]
[1625132741525,0.15,2095.6,2094.1,3.57961]
[1625132741526,4.18050866,2095.6,2094.1,3.57961]
[1625132741626,4.18050866,2095.6,2094.0,16.95130795]
[1625132741629,22.08694714,2095.5,2094.0,16.95130795]
[1625132741727,0.03202938,2095.4,2094.0,16.95130795]
[1625132741826,0.18202938,2095.4,2094.6,0.00802762]
[1625132741925,0.18202938,2095.4,2094.8,0.00802762]
[1625132741926,0.15,2095.4,2094.8,0.00802762]
[1625132743387,0.5624491,2095.4,2094.8,0.00802762]
[1625132743789,15.5624491,2095.4,2094.6,5.524e-05]
[1625132743890,0.5624491,2095.4,2094.8,7.16219]
[1625132743990,0.5624491,2095.4,2094.7,6.17447]
[1625132743993,22.25,2095.3,2094.7,6.17447]
[1625132744091,22.25,2095.3,2094.7,2.14187431]
[1625132744190,22.25,2095.3,2093.6,5.8569123]
[1625132744192,22.25,2095.3,2093.6,4.7736123]
[1625132744194,0.29780085,2094.9,2093.6,4.7736123]
[1625132744341,0.29780085,2094.9,2093.4,6.46182]
[1625132744342,23.46,2094.5,2093.4,6.46182]
[1625132744430,0.4124491,2094.8,2093.4,6.46182]
[1625132744530,0.15,2094.4,2093.4,6.46182]
[1625132744627,0.23920439,2095.2,2093.5,0.05077523]
[1625132744628,5.57753341,2094.7,2093.5,0.05077523]
[1625132744727,28.25,2094.4,2093.4,5.324302]
[1625132744829,5.54546716,2094.3,2093.4,5.324302]
[1625132744928,5.48276678,2094.3,2093.4,5.324302]
[1625132745029,0.15,2094.5,2093.4,5.324302]
[1625132745130,0.13321995,2094.5,2094.1,7.16405]
[1625132745433,0.13321995,2094.5,2093.5,11.93769]
[1625132745434,6.46442464,2094.5,2093.5,11.93769]
[1625132745530,0.54566905,2094.5,2093.5,11.93769]
[1625132745631,0.54566905,2094.5,2093.4,0.5]
[1625132745732,0.44566905,2094.5,2093.4,7.57015246]
[1625132745832,0.44566905,2094.5,2093.4,0.5]
[1625132745987,0.44566905,2094.5,2093.0,199.255575]
[1625132745989,0.44566905,2094.5,2093.0,187.284565]
[1625132745990,28.25,2094.4,2093.0,187.284565]
[1625132746087,28.25,2094.4,2093.0,148.769465]
[1625132746088,1.39,2093.9,2093.0,148.769465]
[1625132746189,1.39,2093.9,2093.0,132.05507111]
[1625132746191,20.29903591,2093.1,2093.0,132.05507111]
[1625132746290,20.29903591,2093.1,2093.0,90.70507111]
[1625132746292,52.0560885,2093.1,2093.0,90.70507111]
[1625132746388,52.0560885,2093.1,2093.0,75.26507111]
[1625132746390,195.90123935,2093.1,2093.0,75.26507111]
[1625132746627,131.97230733,2093.1,2093.0,69.91815434]
[1625132746629,375.43360532,2093.1,2093.0,35.48270465]
[1625132746701,375.43360532,2093.1,2093.0,14.55862417]
[1625132746702,86.59784667,2093.1,2093.0,14.55862417]
[1625132746799,5.67279613,2092.7,2091.6,4.245842]
[1625132746899,20.0,2092.0,2090.9,0.00673202]
[1625132747003,20.0,2091.4,2090.6,3.6300497]
[1625132747152,2.49109494,2091.2,2090.6,3.6300497]
[1625132747250,0.4124491,2091.1,2090.6,3.6300497]
[1625132747348,3.46,2090.7,2090.6,3.6300497]
[1625132747550,10.33990905,2090.7,2090.6,3.6300497]
[1625132747650,10.33990905,2090.7,2089.7,36.83924209]
[1625132747753,2.71,2090.7,2089.7,31.34204209]
[1625132747851,1.86,2090.7,2089.7,31.34204209]
[1625132747999,3.0,2090.9,2089.7,30.74204209]
[1625132748103,5.63267486,2090.8,2089.7,30.74204209]
[1625132748251,5.63267486,2090.8,2089.8,7.17887995]
[1625132748252,0.15,2090.8,2089.8,7.17887995]
[1625132748351,4.02380774,2091.6,2089.8,7.17887995]
[1625132748352,3.7904342,2091.6,2089.8,7.17887995]
[1625132748450,0.15,2091.1,2089.8,7.17887995]
[1625132748552,20.0,2091.7,2089.8,7.17887995]
[1625132748650,0.15,2091.6,2089.8,7.23887995]
[1625132748832,0.15,2091.6,2089.8,7.17887995]
[1625132748932,0.15,2091.6,2089.8,7.48315292]
[1625132749040,0.15,2091.6,2089.9,0.213283]
[1625132749133,0.15,2091.6,2090.4,0.29378456]
[1625132749233,0.00739237,2091.9,2090.4,0.29378456]
[1625132749731,0.00739237,2091.9,2090.5,2.54202017]
[1625132749834,0.00739237,2091.9,2091.1,5.01]
[1625132750341,0.15,2091.8,2091.1,5.01]
[1625132750633,0.00739237,2091.9,2091.1,5.01]
[1625132750835,0.00739237,2091.9,2090.6,12.41046876]
[1625132751103,0.00739237,2091.9,2090.6,4.585]
[1625132751201,0.00739237,2091.9,2090.6,7.12702017]
[1625132751939,0.00739237,2091.9,2090.8,3.0]
[1625132752040,0.00739237,2091.9,2090.9,0.29646947]
[1625132752192,2.37e-06,2091.9,2090.9,1.39406947]
[1625132752290,2.37e-06,2091.9,2090.9,3.93608964]
[1625132752390,2.37e-06,2091.9,2090.9,4.04362929]
[1625132752591,2.37e-06,2091.9,2090.9,6.42065124]
[1625132752793,2.37e-06,2091.9,2091.0,7.87205733]
[1625132752993,2.37e-06,2091.9,2091.4,3.0]
[1625132753093,2.37e-06,2091.9,2091.5,0.30715679]
[1625132753193,2.37e-06,2091.9,2091.5,7.47314679]
[1625132753398,0.15,2093.3,2091.6,0.11185465]
[1625132753501,0.15,2093.3,2091.6,0.06185465]
[1625132753598,0.15,2093.3,2091.6,0.16185465]
[1625132753701,0.15,2093.3,2091.6,0.06185465]
[1625132753798,0.15,2093.3,2091.6,2.44086141]
[1625132753902,5.332,2094.2,2092.8,5.01]
[1625132753903,1.872,2094.2,2092.8,5.01]
[1625132754002,0.44604476,2093.8,2092.8,5.01]
[1625132754099,0.15,2093.8,2092.8,5.01]
[1625132754399,0.15,2093.8,2092.8,4.96]
[1625132754604,0.4124491,2093.7,2092.8,4.96]
[1625132754700,0.72202139,2093.7,2092.0,0.08930899]
[1625132754800,0.15,2093.6,2092.0,0.05844079]
[1625132754900,0.15,2093.6,2091.9,8.0]
[1625132755840,0.15,2093.6,2091.5,0.30715679]
[1625132755841,20.0,2093.3,2091.5,8.01658281]
[1625132755942,20.0,2093.3,2091.7,7.34004691]
[1625132756045,20.0,2093.3,2091.7,4.7579]
[1625132756046,0.29799222,2093.1,2091.7,4.7579]
[1625132756143,0.01388902,2093.0,2091.7,4.7579]
[1625132756244,0.16388902,2093.0,2091.7,4.7579]
[1625132757047,0.6530401,2093.0,2091.7,4.7579]
[1625132757144,6.21559392,2093.0,2091.7,4.7579]
[1625132757246,6.41661561,2093.0,2091.7,4.7579]
[1625132757345,6.41661561,2093.0,2091.2,1.1317]
[1625132757545,0.6530401,2093.0,2091.3,8.2029558]
[1625132757646,0.6530401,2093.0,2091.4,0.05811471]
[1625132757750,0.63915108,2093.0,2091.3,1.1767]
[1625132757945,0.63915108,2093.0,2090.4,9.09640597]
[1625132757947,0.63915108,2093.0,2090.2,0.15]
[1625132757950,0.29976667,2092.1,2090.2,0.15]
[1625132758082,7.3260517,2091.3,2090.3,20.0]
[1625132758177,0.165199,2091.2,2088.9,4.7882131]
[1625132758273,0.0076891,2091.2,2088.9,4.7882131]
[1625132758374,5.68052706,2091.2,2088.9,4.7882131]
[1625132758471,0.11735123,2091.1,2088.9,4.7882131]
[1625132758670,0.11735123,2091.1,2089.7,7.17221]
[1625132758772,0.02030969,2091.2,2089.7,7.17221]
[1625132759027,0.07807537,2091.8,2089.7,9.40069545]
[1625132759120,0.00756864,2091.9,2089.8,2.09982814]
[1625132759220,0.06170012,2092.4,2089.8,2.09982814]
[1625132759221,0.06170012,2092.4,2089.9,12.2667136]
[1625132759222,0.15,2092.4,2089.9,12.2667136]
[1625132759320,0.15,2092.4,2089.9,32.2667136]
[1625132759321,0.01548194,2092.4,2089.9,32.2667136]
[1625132759420,0.01548194,2092.4,2090.0,0.50190405]
[1625132759520,0.01548194,2092.4,2090.0,2.48447011]
[1625132759819,0.01548194,2092.4,2090.2,20.0]
[1625132759921,0.4124491,2092.7,2090.2,20.0]
[1625132759922,0.4124491,2092.7,2092.0,5.01]
[1625132760106,6.8443096,2092.8,2092.0,9.1948]
[1625132760205,6.8443096,2092.8,2092.0,17.1948]
[1625132760308,0.79246581,2093.0,2092.0,17.1948]
[1625132760406,0.48915108,2093.0,2092.3,5.01]
[1625132760607,3.54616225,2093.9,2092.3,5.01]
[1625132760608,3.39616225,2093.9,2092.3,5.01]
[1625132760709,3.1,2093.9,2092.4,0.16490365]
[1625132760807,2.016,2094.2,2092.4,0.16490365]
[1625132760910,61.22549206,2094.7,2092.4,0.16490365]
[1625132761009,61.22549206,2094.7,2092.5,7.3125]
[1625132761121,61.22549206,2094.7,2092.6,0.28161159]
[1625132761207,5.28519424,2094.6,2092.6,0.28161159]
[1625132761410,5.28519424,2094.6,2094.0,5.01]
[1625132761509,5.28519424,2094.6,2094.0,9.4375]
[1625132761709,5.28519424,2094.6,2093.8,1.2221]
[1625132761807,1.0124491,2094.5,2093.7,0.9633]
[1625132762009,1.0124491,2094.5,2092.0,21.31260802]
[1625132762010,0.6,2094.3,2092.0,21.31260802]
[1625132762109,0.6,2094.3,2092.1,0.15]
[1625132762207,0.6,2094.3,2092.9,7.162]
[1625132762208,0.30399561,2094.2,2092.9,7.162]
[1625132762386,0.30399561,2094.2,2092.7,9.54933]
[1625132762387,0.30399561,2094.2,2092.7,13.72823]
[1625132762388,7.33525206,2094.2,2092.7,13.72823]
[1625132762488,7.03125645,2094.2,2092.7,13.72823]
[1625132762590,0.4124491,2094.1,2092.7,13.72823]
[1625132762894,0.4124491,2094.1,2092.7,4.1789]
[1625132763040,0.28627902,2094.0,2092.7,4.1789]
[1625132763142,6.22907126,2094.0,2092.7,4.1789]
[1625132763239,6.36907126,2094.0,2092.7,4.1789]
[1625132763341,5.60566524,2093.8,2092.6,1.0708]
[1625132763439,5.60566524,2093.8,2092.0,9.70146]
[1625132763440,6.02854761,2093.8,2092.0,9.70146]
[1625132763642,0.4124491,2093.7,2092.0,9.70146]
[1625132763840,0.63970308,2093.6,2092.0,9.70146]
[1625132763937,0.4124491,2093.6,2092.0,9.70146]
[1625132764039,0.26896293,2093.5,2092.0,9.70146]
[1625132764141,6.34290093,2093.5,2092.0,9.70146]
[1625132764237,6.32466666,2093.5,2092.0,9.70146]
[1625132764739,6.05570373,2093.5,2092.0,9.70146]
[1625132764839,0.22770073,2093.5,2092.0,9.70146]
[1625132764941,5.33575561,2093.5,2092.0,9.70146]
[1625132765046,0.4124491,2093.6,2092.0,9.70146]
[1625132765142,0.4124491,2093.6,2092.3,3.58129]